lending/lending_fUSD_20250719
["ID","MTS","AMOUNT","RATE_DAILY","PERIOD"]
[373277401,1752927059644,-480.0,0.00019397,2]
[373277403,1752927059655,-480.0,0.00019397,2]
[373277405,1752927059665,-480.0,0.00019397,2]
[373277407,1752927059675,-420.0,0.00019397,2]
[373277409,1752927059685,-480.0,0.00019397,2]
[373277411,1752927059695,-480.0,0.00019397,2]
[373277413,1752927059706,-480.0,0.00019397,2]
[373277415,1752927059716,-480.0,0.00019397,2]
[373277417,1752927059726,-480.0,0.00019397,2]
[373277419,1752927059735,-2730.74,0.00019397,2]
[373277421,1752927059745,-480.0,0.00019397,2]
[373277423,1752927059755,-480.0,0.00019397,2]
[373277425,1752927059765,-480.0,0.00019397,2]
[373277427,1752927059774,-480.0,0.00019397,2]
[373277430,1752927059785,-480.0,0.00019397,2]
[373277432,1752927059795,-420.0,0.00019397,2]
[373277434,1752927059805,-480.0,0.00019397,2]
[373277436,1752927059814,-480.0,0.00019397,2]
[373277438,1752927059824,-480.0,0.00019397,2]
[373277439,1752927059835,-480.0,0.00019397,2]
[373277442,1752927059847,-420.0,0.00019397,2]
[373277444,1752927059857,-480.0,0.00019397,2]
[373277446,1752927059867,-591.33,0.00019397,2]
[373277448,1752927059879,-480.0,0.00019397,2]
[373277450,1752927059889,-480.0,0.00019397,2]
[373277452,1752927059900,-420.0,0.00019397,2]
[373277454,1752927059911,-420.0,0.00019397,2]
[373277456,1752927059921,-716.69,0.00019397,2]
[373277458,1752927059931,-480.0,0.00019397,2]
[373277460,1752927059943,-480.0,0.00019397,2]
[373277462,1752927059958,-526.79,0.00019397,2]
[373277464,1752927059968,-480.0,0.00019397,2]
[373277466,1752927059979,-2050.61,0.00019397,2]
[373277468,1752927059992,-480.0,0.00019397,2]
[373277470,1752927060002,-480.0,0.00019397,2]
[373277472,1752927060012,-654.07,0.00019397,2]
[373277474,1752927060022,-480.0,0.00019397,2]
[373277476,1752927060032,-1300.36,0.00019397,2]
[373277478,1752927060043,-420.0,0.00019397,2]
[373277480,1752927060053,-480.0,0.00019397,2]
[373277483,1752927060064,-1273.72,0.00019397,2]
[373277485,1752927060074,-696.21,0.00019397,2]
[373277487,1752927060083,-420.0,0.00019397,2]
[373277489,1752927060094,-420.0,0.00019397,2]
[373277491,1752927060103,-480.0,0.00019397,2]
[373277493,1752927060114,-532.37,0.00019397,2]
[373277495,1752927060123,-420.0,0.00019397,2]
[373277497,1752927060133,-480.0,0.00019397,2]
[373277499,1752927060142,-8406.08,0.00019397,2]
[373277501,1752927060152,-420.0,0.00019397,2]
[373277503,1752927060162,-480.0,0.00019397,2]
[373277505,1752927060172,-480.0,0.00019397,2]
[373277507,1752927060182,-480.0,0.00019397,2]
[373277509,1752927060192,-3098.53,0.00019397,2]
[373277511,1752927060206,-625.82,0.00019397,2]
[373277513,1752927060216,-480.0,0.00019397,2]
[373277515,1752927060226,-779.14,0.00019397,2]
[373277517,1752927060237,-480.0,0.00019397,2]
[373277519,1752927060247,-480.0,0.00019397,2]
[373277521,1752927060256,-420.0,0.00019397,2]
[373277523,1752927060266,-480.0,0.00019397,2]
[373277525,1752927060276,-480.0,0.00019397,2]
[373277551,1752927060513,-420.0,0.00019397,2]
[373277554,1752927060531,-480.0,0.00019397,2]
[373277556,1752927060541,-480.0,0.00019397,2]
[373277558,1752927060551,-480.0,0.00019397,2]
[373277560,1752927060560,-480.0,0.00019397,2]
[373277562,1752927060569,-480.0,0.00019397,2]
[373277564,1752927060581,-480.0,0.00019397,2]
[373277566,1752927060590,-480.0,0.00019397,2]
[373277568,1752927060600,-480.0,0.00019397,2]
[373277570,1752927060610,-480.0,0.00019397,2]
[373277572,1752927060619,-480.0,0.00019397,2]
[373277574,1752927060628,-4536.51,0.00019397,2]
[373277576,1752927060637,-482.89,0.00019397,2]
[373277578,1752927060647,-480.0,0.00019397,2]
[373277580,1752927060658,-258.77758657,0.00019397,2]
[373277582,1752927060667,-480.0,0.00019397,2]
[373277584,1752927060677,-620.34,0.00019397,2]
[373277586,1752927060687,-420.0,0.00019397,2]
[373277588,1752927060696,-480.0,0.00019397,2]
[373277590,1752927060708,-1944.15,0.00019397,2]
[373277592,1752927060718,-480.0,0.00019397,2]
[373277594,1752927060727,-480.0,0.00019397,2]
[373277596,1752927060737,-625.37,0.00019397,2]
[373277598,1752927060747,-480.0,0.00019397,2]
[373277600,1752927060756,-480.0,0.00019397,2]
[373277602,1752927060766,-480.0,0.00019397,2]
[373277604,1752927060775,-996.66,0.00019397,2]
[373277606,1752927060785,-480.0,0.00019397,2]
[373277608,1752927060795,-480.0,0.00019397,2]
[373277610,1752927060805,-480.0,0.00019397,2]
[373277612,1752927060814,-480.0,0.00019397,2]
[373277614,1752927060824,-480.0,0.00019397,2]
[373277616,1752927060833,-7262.97,0.00019397,2]
[373277618,1752927060843,-480.0,0.00019397,2]
[373277620,1752927060852,-480.0,0.00019397,2]
[373277622,1752927060862,-480.0,0.00019397,2]
[373277624,1752927060872,-480.0,0.00019397,2]
[373277626,1752927060882,-480.0,0.00019397,2]
[373277628,1752927060892,-480.0,0.00019397,2]
[373277630,1752927060902,-814.82,0.00019397,2]
[373277632,1752927060913,-480.0,0.00019397,2]
[373277634,1752927060923,-814.36,0.00019397,2]
[373277636,1752927060933,-480.0,0.00019397,2]
[373277638,1752927060943,-420.0,0.00019397,2]
[373277640,1752927060955,-480.0,0.00019397,2]
[373277642,1752927060964,-480.0,0.00019397,2]
[373277644,1752927060974,-420.0,0.00019397,2]
[373277646,1752927060983,-420.0,0.00019397,2]
[373277648,1752927060994,-495.52,0.00019397,2]
[373277650,1752927061004,-480.0,0.00019397,2]
[373277652,1752927061014,-861.88,0.00019397,2]
[373277654,1752927061024,-480.0,0.00019397,2]
[373277656,1752927061034,-480.0,0.00019397,2]
[373277658,1752927061044,-420.0,0.00019397,2]
[373277660,1752927061053,-480.0,0.00019397,2]
[373277662,1752927061063,-480.0,0.00019397,2]
[373277664,1752927061074,-420.0,0.00019397,2]
[373277666,1752927061084,-945.47,0.00019397,2]
[373277668,1752927061094,-420.0,0.00019397,2]
[373277671,1752927061104,-420.0,0.00019397,2]
[373277672,1752927061114,-440.0,0.00019397,2]
[373277675,1752927061124,-553.5,0.00019397,2]
[373277677,1752927061134,-480.0,0.00019397,2]
[373277679,1752927061143,-480.0,0.00019397,2]
[373277681,1752927061154,-480.0,0.00019397,2]
[373277683,1752927061167,-480.0,0.00019397,2]
[373277684,1752927061176,-519.08,0.00019397,2]
[373277686,1752927061186,-314.76,0.00019397,2]
[373277689,1752927061196,-420.0,0.00019397,2]
[373277691,1752927061208,-569.84,0.00019397,2]
[373277693,1752927061218,-420.0,0.00019397,2]
[373277695,1752927061228,-480.0,0.00019397,2]
[373277697,1752927061238,-210.37288303,0.000194,2]
[373277699,1752927061247,-150.0,0.0001942,4]
[373277701,1752927061257,-150.0,0.0001942,4]
[373277703,1752927061268,-150.0,0.00019475,4]
[373277705,1752927061277,-150.0,0.00019491,4]
[373277707,1752927061287,-500.0,0.00019505,2]
[373277709,1752927061297,-262.00349949,0.00019505,2]
[373277711,1752927061307,-480.55,0.00019506,2]
[373277713,1752927061317,-480.0,0.00019506,2]
[373277715,1752927061326,-476.27976323,0.00019506,2]
[373277717,1752927061336,-480.0,0.00019506,2]
[373277719,1752927061346,-480.0,0.00019506,2]
[373277721,1752927061357,-400.0,0.00019506,2]
[373277723,1752927061367,-480.0,0.00019506,2]
[373277725,1752927061377,-400.0,0.00019506,2]
[373277727,1752927061387,-480.0,0.00019506,2]
[373277729,1752927061397,-325.6437791,0.00019506,2]
[373277731,1752927061407,-480.0,0.00019506,2]
[373277733,1752927061416,-480.0,0.00019506,2]
[373277735,1752927061426,-480.0,0.00019506,2]
[373277737,1752927061435,-621.36,0.00019506,2]
[373277739,1752927061446,-480.0,0.00019506,2]
[373277741,1752927061460,-480.0,0.00019506,2]
[373277743,1752927061469,-480.0,0.00019506,2]
[373277745,1752927061479,-420.0,0.00019506,2]
[373277747,1752927061488,-480.0,0.00019506,2]
[373277749,1752927061498,-480.0,0.00019506,2]
[373277751,1752927061508,-185.67,0.00019506,2]
[373277753,1752927061519,-233.01,0.00019506,2]
[373277755,1752927061530,-349.35,0.00019506,2]
[373277757,1752927061540,-417.78,0.00019506,2]
[373277759,1752927061550,-223.89,0.00019506,2]
[373277761,1752927061560,-480.0,0.00019506,2]
[373277763,1752927061570,-314.43,0.00019506,2]
[373277765,1752927061581,-491.25,0.00019506,2]
[373277767,1752927061591,-480.0,0.00019506,2]
[373277769,1752927061602,-480.0,0.00019506,2]
[373277771,1752927061612,-606.93,0.00019506,2]
[373277773,1752927061623,-480.0,0.00019506,2]
[373277775,1752927061633,-153.93,0.00019506,2]
[373277777,1752927061643,-563.29,0.00019506,2]
[373277779,1752927061654,-420.0,0.00019506,2]
[373277781,1752927061663,-480.0,0.00019506,2]
[373277783,1752927061673,-480.0,0.00019506,2]
[373277785,1752927061682,-480.0,0.00019506,2]
[373277787,1752927061693,-222.33,0.00019506,2]
[373277789,1752927061708,-624.75,0.00019506,2]
[373277791,1752927061717,-530.07251239,0.00019506,2]
[373277793,1752927061727,-480.0,0.00019506,2]
[373277795,1752927061736,-480.0,0.00019506,2]
[373277796,1752927061746,-480.0,0.00019506,2]
[373277798,1752927061756,-480.0,0.00019506,2]
[373277799,1752927061765,-527.7,0.00019506,2]
[373277800,1752927061774,-517.44,0.00019506,2]
[373277801,1752927061784,-480.0,0.00019506,2]
[373277802,1752927061794,-480.0,0.00019506,2]
[373277803,1752927061803,-510.82,0.00019506,2]
[373277804,1752927061813,-480.0,0.00019506,2]
[373277805,1752927061822,-480.0,0.00019506,2]
[373277806,1752927061835,-480.0,0.00019506,2]
[373277807,1752927061844,-480.0,0.00019506,2]
[373277808,1752927061854,-480.0,0.00019506,2]
[373277810,1752927061864,-480.0,0.00019506,2]
[373277812,1752927061874,-480.0,0.00019506,2]
[373277814,1752927061883,-609.99,0.00019506,2]
[373277816,1752927061892,-480.0,0.00019506,2]
[373277818,1752927061903,-480.0,0.00019506,2]
[373277820,1752927061912,-480.0,0.00019506,2]
[373277822,1752927061921,-480.0,0.00019506,2]
[373277824,1752927061931,-492.22,0.00019506,2]
[373277826,1752927061940,-480.0,0.00019506,2]
[373277828,1752927061952,-373.08,0.00019506,2]
[373277830,1752927061962,-480.0,0.00019506,2]
[373277832,1752927061972,-318.2,0.00019506,2]
[373277834,1752927061982,-480.0,0.00019506,2]
[373277836,1752927061992,-480.0,0.00019506,2]
[373277838,1752927062001,-192.0536417,0.00019506,2]
[373277840,1752927062010,-480.0,0.00019506,2]
[373277842,1752927062020,-509.24,0.00019506,2]
[373277844,1752927062030,-480.0,0.00019506,2]
[373277846,1752927062039,-531.54,0.00019506,2]
[373277848,1752927062048,-480.0,0.00019506,2]
[373277850,1752927062058,-480.0,0.00019506,2]
[373277852,1752927062067,-480.0,0.00019506,2]
[373277854,1752927062076,-480.0,0.00019506,2]
[373277856,1752927062086,-480.0,0.00019506,2]
[373277858,1752927062096,-480.0,0.00019506,2]
[373277860,1752927062106,-480.0,0.00019506,2]
[373277862,1752927062116,-480.0,0.00019506,2]
[373277864,1752927062126,-564.73,0.00019506,2]
[373277866,1752927062139,-480.0,0.00019506,2]
[373277868,1752927062149,-420.0,0.00019506,2]
[373277870,1752927062159,-179.2,0.00019506,2]
[373277872,1752927062169,-480.0,0.00019506,2]
[373277874,1752927062179,-480.0,0.00019506,2]
[373277876,1752927062190,-480.0,0.00019506,2]
[373277878,1752927062203,-480.0,0.00019506,2]
[373277880,1752927062213,-480.0,0.00019506,2]
[373277882,1752927062223,-480.0,0.00019506,2]
[373277884,1752927062233,-480.0,0.00019506,2]
[373277886,1752927062243,-480.0,0.00019506,2]
[373277888,1752927062253,-292.02,0.00019506,2]
[373277890,1752927062263,-480.0,0.00019506,2]
[373277892,1752927062274,-584.24859415,0.00019506,2]
[373277894,1752927062283,-480.0,0.00019506,2]
[373277896,1752927062293,-480.0,0.00019506,2]
[373277898,1752927062303,-480.0,0.00019506,2]
[373277900,1752927062312,-480.0,0.00019506,2]
[373277902,1752927062322,-160.56,0.00019506,2]
[373277904,1752927062331,-172.9350884,0.00019506,2]
[373277906,1752927062341,-480.0,0.00019506,2]
[373277908,1752927062351,-231.44,0.00019506,2]
[373277910,1752927062360,-480.0,0.00019506,2]
[373277912,1752927062370,-480.0,0.00019506,2]
[373277914,1752927062380,-480.0,0.00019506,2]
[373277916,1752927062389,-480.0,0.00019506,2]
[373277918,1752927062399,-480.0,0.00019506,2]
[373277920,1752927062408,-480.0,0.00019506,2]
[373277922,1752927062418,-182.4,0.00019506,2]
[373277924,1752927062427,-189.1,0.00019506,2]
[373277926,1752927062436,-420.0,0.00019506,2]
[373277928,1752927062446,-480.0,0.00019506,2]
[373277930,1752927062458,-480.0,0.00019506,2]
[373277932,1752927062468,-480.0,0.00019506,2]
[373277934,1752927062478,-480.0,0.00019506,2]
[373277936,1752927062488,-262.53,0.00019506,2]
[373277938,1752927062498,-480.0,0.00019506,2]
[373277940,1752927062507,-282.62,0.00019506,2]
[373277942,1752927062517,-480.0,0.00019506,2]
[373277944,1752927062527,-480.0,0.00019506,2]
[373277946,1752927062537,-480.0,0.00019506,2]
[373277948,1752927062547,-400.0,0.00019506,2]
[373277950,1752927062557,-480.0,0.00019506,2]
[373277952,1752927062567,-480.0,0.00019506,2]
[373277954,1752927062578,-400.0,0.00019506,2]
[373277956,1752927062591,-480.0,0.00019506,2]
[373277958,1752927062601,-480.0,0.00019506,2]
[373277960,1752927062610,-400.0,0.00019506,2]
[373277962,1752927062620,-480.0,0.00019506,2]
[373277964,1752927062630,-572.13,0.00019506,2]
[373277966,1752927062639,-480.0,0.00019506,2]
[373277968,1752927062648,-531.16,0.00019506,2]
[373277970,1752927062658,-480.0,0.00019506,2]
[373277972,1752927062667,-513.76,0.00019506,2]
[373277974,1752927062677,-480.0,0.00019506,2]
[373277976,1752927062686,-480.0,0.00019506,2]
[373277978,1752927062696,-441.72,0.00019506,2]
[373277980,1752927062711,-259.11,0.00019506,2]
[373277982,1752927062721,-480.0,0.00019506,2]
[373277984,1752927062730,-480.0,0.00019506,2]
[373277986,1752927062740,-480.0,0.00019506,2]
[373277988,1752927062750,-578.56,0.00019506,2]
[373277990,1752927062759,-400.0,0.00019506,2]
[373277992,1752927062769,-477.22943481,0.00019506,2]
[373277994,1752927062779,-480.0,0.00019506,2]
[373277996,1752927062790,-480.0,0.00019506,2]
[373277998,1752927062799,-480.0,0.00019506,2]
[373278000,1752927062809,-400.0,0.00019506,2]
[373278002,1752927062820,-480.0,0.00019506,2]
[373278004,1752927062830,-480.0,0.00019506,2]
[373278006,1752927062839,-400.0,0.00019506,2]
[373278008,1752927062849,-480.0,0.00019506,2]
[373278010,1752927062858,-480.0,0.00019506,2]
[373278012,1752927062867,-480.0,0.00019506,2]
[373278014,1752927062877,-480.0,0.00019506,2]
[373278016,1752927062886,-480.0,0.00019506,2]
[373278025,1752927062978,-480.0,0.00019506,2]
[373278027,1752927062988,-480.0,0.00019506,2]
[373278029,1752927062997,-480.0,0.00019506,2]
[373278031,1752927063006,-480.0,0.00019506,2]
[373278033,1752927063015,-480.0,0.00019506,2]
[373278034,1752927063026,-480.0,0.00019506,2]
[373278036,1752927063037,-509.18,0.00019506,2]
[373278038,1752927063046,-480.0,0.00019506,2]
[373278040,1752927063057,-480.0,0.00019506,2]
[373278042,1752927063068,-1272.92,0.00019506,2]
[373278044,1752927063079,-480.0,0.00019506,2]
[373278046,1752927063091,-480.0,0.00019506,2]
[373278049,1752927063102,-400.0,0.00019506,2]
[373278050,1752927063112,-400.0,0.00019506,2]
[373278053,1752927063123,-480.0,0.00019506,2]
[373278055,1752927063134,-480.0,0.00019506,2]
[373278056,1752927063144,-632.75,0.00019506,2]
[373278059,1752927063154,-400.0,0.00019506,2]
[373278060,1752927063164,-480.0,0.00019506,2]
[373278062,1752927063174,-491.87827968,0.00019506,2]
[373278064,1752927063184,-480.0,0.00019506,2]
[373278067,1752927063194,-632.62,0.00019506,2]
[373278068,1752927063206,-480.0,0.00019506,2]
[373278070,1752927063215,-400.0,0.00019506,2]
[373278072,1752927063225,-480.0,0.00019506,2]
[373278074,1752927063235,-480.0,0.00019506,2]
[373278076,1752927063244,-480.0,0.00019506,2]
[373278078,1752927063254,-480.0,0.00019506,2]
[373278080,1752927063263,-151.0,0.00019506,2]
[373278082,1752927063273,-480.0,0.00019506,2]
[373278084,1752927063283,-400.0,0.00019506,2]
[373278086,1752927063293,-400.0,0.00019506,2]
[373278088,1752927063302,-480.0,0.00019506,2]
[373278091,1752927063313,-679.94,0.00019506,2]
[373278093,1752927063323,-480.0,0.00019506,2]
[373278095,1752927063333,-480.0,0.00019506,2]
[373278097,1752927063343,-480.0,0.00019506,2]
[373278099,1752927063352,-151.0,0.00019506,2]
[373278100,1752927063362,-1585.57,0.00019506,2]
[373278103,1752927063372,-480.0,0.00019506,2]
[373278104,1752927063381,-151.0,0.00019506,2]
[373278107,1752927063391,-480.0,0.00019506,2]
[373278108,1752927063401,-169.36,0.00019506,2]
[373278110,1752927063410,-480.0,0.00019506,2]
[373278113,1752927063420,-480.0,0.00019506,2]
[373278114,1752927063430,-400.0,0.00019506,2]
[373278116,1752927063440,-503.15,0.00019506,2]
[373278118,1752927063449,-480.0,0.00019506,2]
[373278120,1752927063460,-480.0,0.00019506,2]
[373278122,1752927063470,-420.0,0.00019506,2]
[373278124,1752927063480,-153.15449,0.00019506,2]
[373278126,1752927063490,-480.0,0.00019506,2]
[373278128,1752927063499,-571.95,0.00019506,2]
[373278130,1752927063509,-581.29,0.00019506,2]
[373278132,1752927063519,-400.0,0.00019506,2]
[373278135,1752927063529,-480.0,0.00019506,2]
[373278136,1752927063539,-480.0,0.00019506,2]
[373278139,1752927063548,-480.0,0.00019506,2]
[373278140,1752927063558,-500.46,0.00019506,2]
[373278142,1752927063567,-480.0,0.00019506,2]
[373278144,1752927063578,-633.45,0.00019506,2]
[373278146,1752927063589,-490.15,0.00019506,2]
[373278148,1752927063599,-480.0,0.00019506,2]
[373278150,1752927063609,-480.0,0.00019506,2]
[373278152,1752927063618,-157.059329,0.00019506,2]
[373278154,1752927063628,-480.0,0.00019506,2]
[373278156,1752927063638,-571.94,0.00019506,2]
[373278158,1752927063648,-1050.85,0.00019506,2]
[373278160,1752927063658,-480.0,0.00019506,2]
[373278162,1752927063668,-480.0,0.00019506,2]
[373278164,1752927063678,-151.0,0.00019506,2]
[373278166,1752927063688,-1036.910079,0.00019506,2]
[373278169,1752927063698,-151.0,0.00019506,2]
[373278171,1752927063712,-1313.33,0.00019506,2]
[373278173,1752927063722,-480.0,0.00019506,2]
[373278174,1752927063731,-480.0,0.00019506,2]
[373278176,1752927063742,-480.0,0.00019506,2]
[373278178,1752927063752,-480.0,0.00019506,2]
[373278180,1752927063762,-205.29,0.00019506,2]
[373278182,1752927063772,-480.0,0.00019506,2]
[373278184,1752927063782,-870.226778,0.00019506,2]
[373278186,1752927063792,-900.893639,0.00019506,2]
[373278188,1752927063801,-1874.03,0.00019506,2]
[373278190,1752927063811,-480.0,0.00019506,2]
[373278192,1752927063820,-824.64,0.00019506,2]
[373278194,1752927063829,-451.53,0.00019506,2]
[373278196,1752927063839,-480.0,0.00019506,2]
[373278198,1752927063848,-480.0,0.00019506,2]
[373278200,1752927063857,-502.1,0.00019506,2]
[373278202,1752927063868,-1726.56,0.00019506,2]
[373278204,1752927063878,-480.0,0.00019506,2]
[373278206,1752927063888,-480.0,0.00019506,2]
[373278208,1752927063898,-151.0,0.00019506,2]
[373278210,1752927063907,-480.0,0.00019506,2]
[373278212,1752927063917,-480.0,0.00019506,2]
[373278214,1752927063927,-480.0,0.00019506,2]
[373278216,1752927063937,-480.0,0.00019506,2]
[373278218,1752927063947,-480.0,0.00019506,2]
[373278220,1752927063962,-3664.0,0.00019506,2]
[373278222,1752927063973,-400.0,0.00019506,2]
[373278224,1752927063982,-622.62,0.00019506,2]
[373278226,1752927063993,-185.52,0.00019506,2]
[373278228,1752927064002,-420.0,0.00019506,2]
[373278230,1752927064012,-480.0,0.00019506,2]
[373278232,1752927064022,-480.0,0.00019506,2]
[373278234,1752927064032,-480.0,0.00019506,2]
[373278236,1752927064052,-480.0,0.00019506,2]
[373278238,1752927064063,-607.67,0.00019506,2]
[373278240,1752927064073,-480.0,0.00019506,2]
[373278242,1752927064083,-480.0,0.00019506,2]
[373278244,1752927064093,-151.0,0.00019506,2]
[373278245,1752927064102,-480.0,0.00019506,2]
[373278248,1752927064113,-480.0,0.00019506,2]
[373278250,1752927064124,-480.0,0.00019506,2]
[373278251,1752927064134,-480.0,0.00019506,2]
[373278253,1752927064145,-622.7,0.00019506,2]
[373278254,1752927064155,-759.29,0.00019506,2]
[373278255,1752927064166,-320.28,0.00019506,2]
[373278256,1752927064176,-480.0,0.00019506,2]
[373278257,1752927064187,-1312.07,0.00019506,2]
[373278258,1752927064198,-516.59,0.00019506,2]
[373278259,1752927064211,-1042.32,0.00019506,2]
[373278260,1752927064221,-1939.98,0.00019506,2]
[373278261,1752927064231,-480.0,0.00019506,2]
[373278262,1752927064242,-644.324241,0.00019506,2]
[373278264,1752927064252,-621.47,0.00019506,2]
[373278266,1752927064263,-480.0,0.00019506,2]
[373278268,1752927064272,-480.0,0.00019506,2]
[373278270,1752927064282,-611.66,0.00019506,2]
[373278272,1752927064292,-151.0,0.00019506,2]
[373278274,1752927064301,-883.72,0.00019506,2]
[373278276,1752927064311,-333.56005262,0.00019506,2]
[373278278,1752927064321,-644.324241,0.00019506,2]
[373278280,1752927064330,-151.58924,0.00019506,2]
[373278282,1752927064340,-480.0,0.00019506,2]
[373278284,1752927064349,-151.0,0.00019506,2]
[373278286,1752927064358,-480.0,0.00019506,2]
[373278288,1752927064368,-1113.11,0.00019506,2]
[373278290,1752927064377,-480.0,0.00019506,2]
[373278292,1752927064387,-480.0,0.00019506,2]
[373278294,1752927064397,-1761.18,0.00019506,2]
[373278296,1752927064406,-480.0,0.00019506,2]
[373278298,1752927064416,-480.0,0.00019506,2]
[373278299,1752927064426,-480.0,0.00019506,2]
[373278301,1752927064436,-480.0,0.00019506,2]
[373278304,1752927064446,-480.0,0.00019506,2]
[373278306,1752927064458,-151.0,0.00019506,2]
[373278308,1752927064468,-671.88,0.00019506,2]
[373278309,1752927064477,-480.0,0.00019506,2]
[373278311,1752927064488,-638.9,0.00019506,2]
[373278313,1752927064497,-483.054661,0.00019506,2]
[373278315,1752927064507,-480.0,0.00019506,2]
[373278317,1752927064516,-808.38,0.00019506,2]
[373278319,1752927064526,-480.0,0.00019506,2]
[373278321,1752927064535,-151.0,0.00019506,2]
[373278323,1752927064545,-480.0,0.00019506,2]
[373278325,1752927064554,-483.054661,0.00019506,2]
[373278327,1752927064564,-587.14,0.00019506,2]
[373278329,1752927064582,-480.0,0.00019506,2]
[373278331,1752927064593,-480.0,0.00019506,2]
[373278333,1752927064603,-480.0,0.00019506,2]
[373278335,1752927064613,-480.0,0.00019506,2]
[373278337,1752927064623,-480.0,0.00019506,2]
[373278339,1752927064634,-480.0,0.00019506,2]
[373278341,1752927064643,-480.0,0.00019506,2]
[373278344,1752927064653,-480.0,0.00019506,2]
[373278346,1752927064665,-480.0,0.00019506,2]
[373278348,1752927064674,-2730.74,0.00019506,2]
[373278350,1752927064683,-480.0,0.00019506,2]
[373278352,1752927064693,-480.0,0.00019506,2]
[373278354,1752927064703,-480.0,0.00019506,2]
[373278355,1752927064713,-480.0,0.00019506,2]
[373278358,1752927064723,-420.0,0.00019506,2]
[373278359,1752927064733,-480.0,0.00019506,2]
[373278361,1752927064743,-480.0,0.00019506,2]
[373278363,1752927064753,-151.0,0.00019506,2]
[373278365,1752927064763,-480.0,0.00019506,2]
[373278367,1752927064772,-480.0,0.00019506,2]
[373278370,1752927064782,-480.0,0.00019506,2]
[373278371,1752927064791,-151.0,0.00019506,2]
[373278373,1752927064802,-519.73,0.00019506,2]
[373278375,1752927064811,-480.0,0.00019506,2]
[373278377,1752927064821,-151.0,0.00019506,2]
[373278379,1752927064830,-716.69,0.00019506,2]
[373278381,1752927064839,-480.0,0.00019506,2]
[373278383,1752927064849,-151.0,0.00019506,2]
[373278385,1752927064859,-480.0,0.00019506,2]
[373278387,1752927064868,-526.79,0.00019506,2]
[373278389,1752927064878,-413.76,0.00019506,2]
[373278391,1752927064887,-2050.61,0.00019506,2]
[373278393,1752927064897,-480.0,0.00019506,2]
[373278395,1752927064906,-480.0,0.00019506,2]
[373278397,1752927064915,-654.07,0.00019506,2]
[373278399,1752927064925,-480.0,0.00019506,2]
[373278401,1752927064935,-1300.36,0.00019506,2]
[373278403,1752927064944,-420.0,0.00019506,2]
[373278405,1752927064954,-1273.72,0.00019506,2]
[373278407,1752927064963,-696.21,0.00019506,2]
[373278409,1752927064973,-480.0,0.00019506,2]
[373278411,1752927064982,-532.37,0.00019506,2]